Cogmind - Beta 14 *** ADVENTURER MODE // 2024.10.12 @ 14:58:12 Player: 7604 Result: Self-destructed Performance ------------- Evolutions (5) 2500 Regions Visited (14) 2800 Robots Destroyed (274) 1370 Value Destroyed (10992) 10992 Prototype IDs (19) 380 Alien Tech Used (0) 0 Bonus (3458) 3458 TOTAL SCORE: 21500 Bonus ------- High Alert Combat Kills 1401 Follower Combat Kills 1104 Entered Garrisons 200 Used RIF Installer 500 Network Hubs Disabled 200 Met R17 at Cetus 500 Friendly Fire -447 Cogmind --------- Core Integrity 800/1000 Matter 290/300 Energy 77/100 System Corruption 8% Temperature Cool (0) Movement Core (50) Location -5/Factory Parts ------- > --- POWER (2) -------- (None) > --- PROPULSION (5) --- Armored Treads > --- UTILITY (8) ------ Advanced Heat Sink Advanced Signal Interpreter Improved Targeting Computer Core Analyzer > --- WEAPON (2) ------- (None) > --- INVENTORY (5) ---- Improved Sensor Array Phase Shifter Hardened Heavy Armor Plating Peak State ------------ > --- POWER ------------ Light Angular Momentum Engine > --- PROPULSION ------- Armored Treads Armored Treads Medium Treads Centrium Heavy Treads > --- UTILITY ---------- Advanced Heat Sink Improved Cooling System Huge Storage Unit Advanced Signal Interpreter Target Analyzer Improved Medium Armor Plating Insulated Plating > --- WEAPON ----------- Heavy Plasma Cannon Heavy Plasma Cannon > --- INVENTORY -------- Angular Momentum Engine Neutrino Core Light Antimatter Reactor Improved Treads Improved Heat Sink Advanced Heat Sink Advanced Heat Sink Cargo Storage Unit Compact Battery Structural Scanner Core Analyzer Armor Integrity Analyzer Hardened Heavy Armor Plating Hardened Heavy Armor Plating Improved Light Armor Plating Improved Heavy Armor Plating Thermal Defense Suite Thermal Defense Suite Improved Hardlight Generator Phasing Sabre [Rating: 77] Favorites ----------- Power Light Angular Momentum Engine Engine Light Angular Momentum Engine Power Core Light Nuclear Core Reactor Light Antimatter Reactor Propulsion Light Treads Treads Light Treads Leg Aluminum Leg Flight Unit Improved VTOL Module Utility Advanced Heat Sink Device Advanced Heat Sink Storage Medium Storage Unit Processor Improved Signal Interpreter Hackware Hacking Suite Protection Improved Light Armor Plating Weapon Heavy Plasma Cannon Energy Gun Heavy Beamcaster Energy Cannon Heavy Plasma Cannon Ballistic Gun Assault Rifle Ballistic Cannon Bore Cannon Launcher Long-range Missile Launcher Special Weapon Remote Datajack Impact Weapon Hammer Slashing Weapon Great Axe Build | -11 -10 -10 -10 -9 -8 -8 -7 -6 -6 -6 -6 -6 -6 -5 ------- Run | Yrd Mat Min Exi Min Mat Sto Fac Fac Gar Ext Cet Arc Hub Fac Slots Evolved 10 | . . . . . 4 . 2 2 . . . . . 2 Power 1 | . . . . . . . . . . . . . . 1 Propulsion 3 | . . . . . 3 . . . . . . . . . Utility 6 | . . . . . 1 . 2 2 . . . . . 1 Weapon . | . . . . . . . . . . . . . . . Parts Attached 339 | 6 3 3 1 7 36 52 36 22 35 48 17 16 26 31 Power 32 | 1 1 1 . . 7 5 3 1 2 5 . 1 2 3 Engine 17 | 1 . . . . 5 3 . . 2 4 . . 1 1 Core 13 | . 1 1 . . 2 2 3 1 . 1 . 1 . 1 Reactor 2 | . . . . . . . . . . . . . 1 1 Propulsion 84 | 2 . . . 3 9 11 14 6 5 10 3 5 7 9 Treads 51 | . . . . . . 9 10 . 5 6 2 5 7 7 Leg 15 | 2 . . . 3 9 . . . . . 1 . . . Wheel . | . . . . . . . . . . . . . . . Hover . | . . . . . . . . . . . . . . . Flight 18 | . . . . . . 2 4 6 . 4 . . . 2 Utility 99 | 1 2 . 1 . 3 4 9 10 12 21 6 4 13 13 Device 38 | . 1 . . . 2 2 3 3 2 7 6 2 6 4 Storage 14 | 1 . . 1 . . 1 . 1 5 4 . . 1 . Processor 6 | . 1 . . . . . . 1 . 1 . . 1 2 Hackware 2 | . . . . . . . . 1 . 1 . . . . Protection 39 | . . . . . 1 1 6 4 5 8 . 2 5 7 Artifact . | . . . . . . . . . . . . . . . Weapon 124 | 2 . 2 . 4 17 32 10 5 16 12 8 6 4 6 Energy Gun 54 | . . 2 . 1 11 13 6 . 6 10 3 1 . 1 Energy Cannon 10 | . . . . . . 2 . . 2 1 1 . 3 1 Ballistic Gun 13 | 2 . . . . 1 6 . . . . . 1 . 3 Ballistic Cannon 3 | . . . . . . . . . . . 1 2 . . Launcher 19 | . . . . 2 4 5 2 . 3 . 3 . . . Special Weapon 8 | . . . . . . 2 1 3 2 . . . . . Impact Weapon 2 | . . . . 1 1 . . . . . . . . . Slashing Weapon 15 | . . . . . . 4 1 2 3 1 . 2 1 1 Piercing Weapon . | . . . . . . . . . . . . . . . Special Melee Weapon . | . . . . . . . . . . . . . . . Unidentified Prototypes 14 | . . . . . 3 7 1 . . . 1 . . 2 Corrupted Parts 6 | . . . . . . 1 4 . 1 . . . . . System Corruption 18 | . . . . . . 6 11 . 1 . . . . . Parts Lost 81 | . . . . . 19 4 7 1 2 7 8 7 8 18 Power 10 | . . . . . 4 2 . 1 . . . 1 . 2 Propulsion 30 | . . . . . 7 1 4 . . 3 1 1 5 8 Utility 21 | . . . . . 1 1 1 . 1 3 5 2 3 4 Weapon 20 | . . . . . 7 . 2 . 1 1 2 3 . 4 Highest Loss Streak 11 | . . . . . 11 1 3 1 1 3 3 7 3 8 To Critical Strikes 2 | . . . . . . . . . . . 1 . 1 . Average Slot Usage (%) 83 | . 99 100 100 100 81 87 94 81 78 70 83 89 87 83 Engine 4 | . 5 . . . 4 8 . . 4 5 6 . 3 1 Core 2 | . 8 14 14 14 3 . 7 5 1 . . 4 2 1 Treads 15 | . . . . . . 27 32 1 13 9 19 23 23 25 Leg 5 | . 28 28 28 28 29 6 . . . . 4 2 . . Flight 2 | . . . . . . . . 31 8 . . . . . Device 10 | . . . . . 7 8 19 13 5 10 16 15 13 11 Storage 7 | . 14 14 14 14 9 9 7 6 8 6 6 6 6 4 Processor 8 | . 12 14 14 14 9 8 . 3 6 10 13 13 13 11 Hackware 1 | . . . . . . . . 2 6 1 . . . . Protection 7 | . . . . . . . 10 7 10 10 2 9 10 10 Energy Gun 8 | . . 13 28 25 12 12 14 1 3 10 2 1 . 1 Energy Cannon 2 | . . . . . . . . . 5 . 5 . 10 4 Ballistic Gun 1 | . 28 14 . . . 3 . . . . . 4 . 4 Peak Build Rating 77 | 6 9 11 11 13 26 32 42 51 73 75 69 69 77 74 Average Rating 45 | 4 8 9 11 11 19 26 36 41 62 50 59 66 69 65 On Entrance 32 | . 6 9 11 11 12 18 30 34 47 73 49 69 68 54 Naked Turns . | . . . . . . . . . . . . . . . Heaviest Build 180 | 12 14 15 19 22 26 40 45 45 180 180 44 55 138 140 Greatest Support 180 | 20 20 20 20 20 57 106 106 82 180 180 120 149 149 127 Greatest Overweight (x) 8 | . . . . 1 8 1 . . 1 8 1 1 1 4 Average Overweight (x) . | . . . . . . . . . . . . . . . Largest Inventory Capacity 30 | 8 8 8 10 10 10 15 15 15 30 30 10 10 25 25 Average Capacity 15 | 6 8 8 9 10 10 10 15 10 20 15 10 10 20 24 Most Carried 25 | 2 8 8 8 10 10 13 15 15 15 19 10 10 24 25 Average Carried 11 | 1 5 8 8 9 8 9 13 9 11 10 9 8 15 21 Final Capacity 30 | 8 8 8 10 10 10 15 15 10 30 10 10 10 25 5 Final Carried 23 | 2 8 8 8 10 10 13 15 10 15 10 7 10 23 4 Class Distribution -------------------- 77% | Scavenger-Mutant 8% | Mutant 8% | Commander-Mutant Dominant Class ---------------- Mutant | -10/Materials Mutant | -10/Mines Mutant | -10/Exiles Scavenger-Mutant | -9/Mines Scavenger-Mutant | -8/Materials Scavenger-Mutant | -8/Storage Scavenger-Mutant | -7/Factory Scavenger-Sprinter | -6/Factory Scavenger-Mutant | -6/Garrison Scavenger-Mutant | -6/Extension Scavenger-Mutant | -6/Cetus Scavenger-Mutant | -6/Archives Scavenger-Mutant | -6/Hub_04(d) Scavenger-Mutant | -5/Factory Resources | -11 -10 -10 -10 -9 -8 -8 -7 -6 -6 -6 -6 -6 -6 -5 ----------- Run | Yrd Mat Min Exi Min Mat Sto Fac Fac Gar Ext Cet Arc Hub Fac Matter Collected 4847 | 248 134 75 . 83 465 847 357 245 473 541 346 216 315 502 Remotely . | . . . . . . . . . . . . . . . Salvage Created 13292 | . 258 109 . 211 1317 2147 1446 408 2226 1430 621 291 1575 1253 Parts 562 | . 21 11 . 15 76 88 60 15 65 44 17 13 77 60 Haulers Intercepted 8 | . . . . . 2 1 1 1 . . . . 2 1 Recyclers Shooed 7 | . 1 . . . 1 1 . . . 4 . . . . Parts Field Recycled . | . . . . . . . . . . . . . . . Retrieved Matter . | . . . . . . . . . . . . . . . Parts Self-Destructed . | . . . . . . . . . . . . . . . Prevented . | . . . . . . . . . . . . . . . Kills | -11 -10 -10 -10 -9 -8 -8 -7 -6 -6 -6 -6 -6 -6 -5 ------- Run | Yrd Mat Min Exi Min Mat Sto Fac Fac Gar Ext Cet Arc Hub Fac Combat Hostiles Destroyed 204 | . 6 3 . 7 26 33 21 3 26 15 12 4 23 25 Melee 12 | . . . . . . . 1 3 1 . . 1 4 2 Guns 92 | . 6 3 . 5 13 24 12 . 6 10 1 . . 12 Cannons 49 | . . . . . . . . . 11 3 7 2 19 7 AOE 36 | . . . . 2 13 5 6 . 3 . 3 . . 4 Classes Destroyed 18 | . 4 1 . . 7 . 2 . 1 1 . . 2 . Worker 10 | . . . . . 5 2 1 . . . . . 2 . Builder 12 | . 2 . . . 5 . . . . 3 . . 2 . Tunneler 1 | . . . . . 1 . . . . . . . . . Hauler 8 | . . . . . 2 1 1 1 . . . . 2 1 Recycler 15 | . . 1 . . 2 6 1 . . 5 . . . . Mechanic 1 | . . . . . 1 . . . . . . . . . Operator 4 | . . . . . 1 . 1 1 . 1 . . . . Watcher 17 | . 1 . . . 2 2 3 2 . 1 2 . 2 2 Swarmer 42 | . 3 3 . 3 3 4 3 . 8 2 . . 4 9 Grunt 96 | . 3 . . 4 19 18 12 . 14 7 4 . 8 7 Brawler 3 | . . . . . . . . . 1 . . . . 2 Duelist 4 | . . . . . . . 1 . 2 . . . . 1 Sentry 33 | . . . . . 3 11 3 3 1 3 . 4 4 1 Specialist 4 | . . . . . . . . . . . . . 4 . Hunter 8 | . . . . . 1 . 1 . . 1 1 . 1 3 Programmer 5 | . . . . . . . 1 . . . 1 . 1 2 Heavy 1 | . . . . . . . . . . . . . 1 . Behemoth 2 | . . . . . . . . . . 2 . . . . Cetus Guard 6 | . . . . . . . . . . . 6 . . . Savage 1 | . . . . . . . . . . . 1 . . . Butcher 1 | . . . . . . . . . . . 1 . . . Best Kill Streak 8 | . 5 3 . 3 8 5 8 2 6 3 5 2 4 5 Combat Bots Only 7 | . 3 3 . 3 4 5 7 1 6 2 5 2 3 5 Max Kills in Single Turn 6 | . 1 1 . 2 6 2 3 1 2 1 2 1 4 3 Gunslinging 1 | . . . . . . 1 1 . . . . . . . Exploded 2 | . . . . 1 2 2 2 . 2 . 2 . . 2 Melee 1 | . . . . . . . 1 1 1 . . 1 1 1 Uniques/NPCs Destroyed . | . . . . . . . . . . . . . . . Combat | -11 -10 -10 -10 -9 -8 -8 -7 -6 -6 -6 -6 -6 -6 -5 -------- Run | Yrd Mat Min Exi Min Mat Sto Fac Fac Gar Ext Cet Arc Hub Fac Hostile Shots Fired 1978 | . 15 13 . 23 198 139 262 99 180 229 106 63 338 313 Missed 677 | . 3 4 . 6 63 50 108 49 59 91 47 14 91 92 Damage Taken 15645 | . 90 67 . 160 1797 1119 1507 287 1281 1407 1088 931 2485 3426 Core 1600 | . 26 14 . 28 310 154 213 72 27 140 83 74 259 200 Absorbed by Shields . | . . . . . . . . . . . . . . . Reduced by Siege Mode 22 | . . . . . . . . . . 22 . . . . Ignored by Resistances 4867 | . 29 21 . 49 509 317 453 106 528 504 292 253 829 977 Regen/Repaired (Parts) 417 | . . . . . . 162 . . . . . . . 255 Core Remaining (%) 55 | 100 . . . 72 . 15 69 . . . . . 22 . Volleys Fired 612 | . 18 7 . 10 61 124 62 4 82 67 39 18 49 71 Largest 2 | . 2 2 . 2 2 2 2 1 2 2 2 2 2 2 Hottest 180 | . 40 85 . 130 130 137 124 5 180 180 171 171 180 180 Shots Fired 1026 | . 36 14 . 18 86 184 109 4 128 121 58 33 98 137 Gun 674 | . 36 14 . 16 73 166 100 . 42 101 18 16 7 85 Cannon 288 | . . . . . . 5 . . 75 20 28 17 91 52 Launcher 48 | . . . . 2 13 12 5 . 4 . 12 . . . Special 16 | . . . . . . 1 4 4 7 . . . . . Kinetic 197 | . 36 13 . . 4 53 . . . . 3 12 14 62 Thermal 652 | . . 1 . 16 44 92 73 . 83 120 43 21 84 75 Explosive 29 | . . . . . 13 . . . 4 . 12 . . . Electromagnetic 133 | . . . . 2 25 39 32 . 34 1 . . . . Robot Hit Streak 81 | . 6 8 . 8 32 81 10 3 30 41 16 11 15 54 Robot Miss Streak 6 | . 2 3 . 1 5 1 2 1 2 3 6 2 2 3 Penetration Max 1 | . . . . . . . . . . . . . . 1 Secondary Targets 11 | . . . . 1 1 2 1 . 2 3 . . . 1 Max Gunslinging Chain 1 | . . . . 1 1 1 1 . 1 1 . . . 1 Shots Hit Robots 875 | . 24 9 . 14 70 135 87 28 135 103 45 27 84 114 Core Hits 513 | . 16 6 . 11 67 68 49 10 60 66 58 9 44 49 Critical Kills 7 | . . . . . . . . . 4 . 1 1 1 . Critical Parts Destroyed 4 | . . . . . . . . . . . . 3 1 . Critical Strikes 39 | . . . . . 2 1 1 3 9 3 4 7 8 1 Burn 13 | . . . . . 2 1 1 . . 3 3 2 . 1 Meltdown 6 | . . . . . . . . . 4 . 1 . 1 . Destroy 8 | . . . . . . . . . . . . 5 3 . Corrupt 1 | . . . . . . . . . 1 . . . . . Sever 11 | . . . . . . . . 3 4 . . . 4 . Melee Attacks 104 | . . . . . 2 5 1 29 49 . . 1 15 2 Impact 2 | . . . . . 2 . . . . . . . . . Slashing 102 | . . . . . . 5 1 29 49 . . 1 15 2 Piercing . | . . . . . . . . . . . . . . . Sneak Attacks 2 | . . . . . 1 . . 1 . . . . . . Combat Hostiles . | . . . . . . . . . . . . . . . Follow-up Attacks . | . . . . . . . . . . . . . . . Damage Inflicted 30204 | . 317 123 . 310 3726 3389 2182 1116 6562 3015 2126 695 3258 3385 Guns 11389 | . 310 116 . 185 1066 2428 1528 . 758 2401 394 260 174 1769 Cannons 6208 | . . . . . . 22 . . 1472 445 615 387 2060 1207 Explosions 6594 | . . . . 125 2598 925 622 . 530 . 1117 . 335 342 Melee 5685 | . . . . . 62 . . 1116 3782 . . 48 629 48 Ramming 328 | . 7 7 . . . 14 32 . 20 169 . . 60 19 Kinetic 2955 | . 310 99 . . 50 714 . . . . . 163 329 1290 Thermal 13811 | . . 17 . 230 914 1723 1112 . 1670 2819 1009 484 1905 1928 Explosive 4607 | . . . . . 2367 203 290 . 530 . 1117 . . 100 Electromagnetic 2818 | . . . . 80 333 735 748 . 560 27 . . 335 . Impact 62 | . . . . . 62 . . . . . . . . . Slashing 5623 | . . . . . . . . 1116 3782 . . 48 629 48 Piercing . | . . . . . . . . . . . . . . . Highest Corruption 11 | . . . . . . 6 11 1 2 2 2 2 11 8 Average Corruption 2 | . . . . . . 6 8 1 1 2 2 2 2 6 Corruption Purged . | . . . . . . . . . . . . . . . Corruption Blocked . | . . . . . . . . . . . . . . . Effects 156 | . . . . . . 33 6 1 16 49 14 7 14 16 Message Errors 43 | . . . . . . 9 2 . 3 12 4 2 4 7 Matter Fused 35 | . . . . . . 10 1 1 4 12 1 1 2 3 Heat Flow Errors 19 | . . . . . . 4 1 . 3 4 5 1 1 . Energy Discharges 16 | . . . . . . 1 . . 2 6 1 2 3 1 Parts Rejected 3 | . . . . . . . . . . 1 . . 1 1 Data Loss (minor) 18 | . . . . . . 2 2 . . 7 2 . 3 2 Data Loss (major) 10 | . . . . . . 5 . . 1 3 . . . 1 Misfires 6 | . . . . . . . . . 2 3 . . . 1 Alerts 4 | . . . . . . 1 . . 1 1 . 1 . . Weapon Failures 2 | . . . . . . 1 . . . . 1 . . . Overload Shots . | . . . . . . . . . . . . . . . Overflow Damage 589 | . . . . . 149 14 45 49 183 10 28 . 75 36 Projectiles 106 | . . . . . . . . . 16 . 28 . 26 36 Explosions 227 | . . . . . 117 14 45 . 28 . . . 23 . Melee 256 | . . . . . 32 . . 49 139 10 . . 26 . Knockbacks 2 | . . . . . . . . . . 2 . . . . Impact 2 | . . . . . . . . . . 2 . . . . Kinetic . | . . . . . . . . . . . . . . . Secondary . | . . . . . . . . . . . . . . . Self-Inflicted Damage 870 | . . . . 12 200 67 231 . . . . . 68 292 Shots 24 | . . . . 1 8 3 6 . . . . . 1 5 Rammed 23 | . . . . . . 4 4 . 1 6 . . 5 3 Targets Rammed 34 | . 2 1 . 1 . 4 5 . 2 9 . . 6 4 Kicked 4 | . 2 1 . 1 . . . . . . . . . . Crushed 7 | . . . . . . . 1 . 1 3 . . 1 1 Highest Temperature 397 | . 2 30 . 230 146 397 78 14 248 225 236 66 288 92 Average Temperature 72 | . 2 15 . 95 42 101 16 4 91 64 69 29 86 31 Received Heat Transfer 5253 | . 36 18 . 108 1008 657 456 120 651 489 243 225 915 327 Effects 6 | . . . . . . 2 . . . 1 1 . 2 . Energy Bleed 2 | . . . . . . . . . . 1 1 . . . Interference 4 | . . . . . . 2 . . . . . . 2 . Siege Activations 1 | . . . . . . . . . . 1 . . . . Total Turns 21 | . . . . . . . . . . 21 . . . . Longest Duration 21 | . . . . . . . . . . 21 . . . . Robots Corrupted 3 | . . . . . 1 1 1 . . . . . . . Combat Hostiles 2 | . . . . . . 1 1 . . . . . . . Parts Fried 16 | . . . . . 3 2 4 . 2 2 . . 3 . Impact Corruptions 3 | . . . . . 1 . . . . 2 . . . . Robots Melted 14 | . . . . . . 3 1 . 5 2 1 1 1 . Combat Hostiles 13 | . . . . . . 3 1 . 5 2 1 1 . . Parts Melted 67 | . . . . 2 2 11 5 . 14 12 2 3 10 6 Heat Transferred 24862 | . . 37 . 545 1704 3334 2183 . 2622 5978 1801 931 2950 2777 Parts Sabotaged . | . . . . . . . . . . . . . . . Parts Stolen . | . . . . . . . . . . . . . . . Parts Stripped . | . . . . . . . . . . . . . . . Power Chain Reactions 15 | . . . . 2 3 7 2 . . . . . 1 . Alert | -11 -10 -10 -10 -9 -8 -8 -7 -6 -6 -6 -6 -6 -6 -5 ------- Run | Yrd Mat Min Exi Min Mat Sto Fac Fac Gar Ext Cet Arc Hub Fac Peak Influence 1517 | . 214 160 . 314 382 709 514 415 1517 1001 204 139 513 770 Initial 689 | . . 70 . . 37 124 276 217 257 689 30 33 . 203 Average 379 | . 105 152 . 164 181 359 317 314 858 386 73 112 130 530 Maximum Alert Level 4 | . 1 . . 1 1 3 2 2 4 3 1 . 2 3 Low Security (%) 36 | 100 76 100 . 56 65 8 13 . . 43 92 100 81 . Level 1 24 | . 23 . . 43 34 52 55 81 8 11 7 . 16 15 Level 2 23 | . . . . . . 37 31 18 30 22 . . 1 67 Level 3 12 | . . . . . . 1 . . 37 22 . . . 16 Level 4 3 | . . . . . . . . . 23 . . . . . Level 5 . | . . . . . . . . . . . . . . . High Security . | . . . . . . . . . . . . . . . Max Security . | . . . . . . . . . . . . . . . Squads Dispatched 35 | . 1 . . 1 5 4 5 2 . 5 2 . 6 4 Investigation 8 | . 1 . . . 1 2 1 . . 1 2 . . . Extermination 5 | . . . . . . . 1 . . . . . 2 2 Reinforcement 16 | . . . . . 3 1 3 2 . 3 . . 4 . Assault 5 | . . . . 1 1 . . . . 1 . . . 2 Garrison 1 | . . . . . . 1 . . . . . . . . Intercept . | . . . . . . . . . . . . . . . Searches Triggered . | . . . . . . . . . . . . . . . Construction Impeded 3 | . . . . . 1 . 1 . . . . . 1 . Haulers Reinforced 2 | . . . . . . . . 1 . . . . 1 . Active Scanning Responses . | . . . . . . . . . . . . . . . Cargo Convoy Interrupts . | . . . . . . . . . . . . . . . Stealth | -11 -10 -10 -10 -9 -8 -8 -7 -6 -6 -6 -6 -6 -6 -5 --------- Run | Yrd Mat Min Exi Min Mat Sto Fac Fac Gar Ext Cet Arc Hub Fac Distress Signals 19 | . . . . . 4 1 2 . . 3 2 . 4 3 Communications Jammed . | . . . . . . . . . . . . . . . Distress Signals . | . . . . . . . . . . . . . . . Times Spotted 310 | . 8 3 . 15 34 37 31 7 39 27 17 4 37 51 Peak Tracking Total 12 | . 3 2 . 4 6 4 4 2 4 4 5 2 8 12 Tactical Retreats 18 | . . . . 2 . 3 4 . . 5 . 1 1 2 Traps | -11 -10 -10 -10 -9 -8 -8 -7 -6 -6 -6 -6 -6 -6 -5 ------- Run | Yrd Mat Min Exi Min Mat Sto Fac Fac Gar Ext Cet Arc Hub Fac Traps Triggered 8 | . . . . . . 1 1 1 1 2 . . 2 . Indirectly 2 | . . . . . . . 1 . . . . . 1 . Trap Hack Attempts . | . . . . . . . . . . . . . . . Triggered . | . . . . . . . . . . . . . . . Disarmed . | . . . . . . . . . . . . . . . Reprogrammed . | . . . . . . . . . . . . . . . Reused . | . . . . . . . . . . . . . . . Traps Extracted . | . . . . . . . . . . . . . . . Installed . | . . . . . . . . . . . . . . . Triggered 1 | . . . . . . . 1 . . . . . . . Machines | -11 -10 -10 -10 -9 -8 -8 -7 -6 -6 -6 -6 -6 -6 -5 ---------- Run | Yrd Mat Min Exi Min Mat Sto Fac Fac Gar Ext Cet Arc Hub Fac Machines Disabled 63 | . . . . . 4 10 12 . 4 4 3 2 10 14 Max in Single Turn 8 | . . . . . 2 1 4 . 1 1 1 1 8 8 Garrison Access 2 | . . . . . . 1 1 . . . . . . . Network Hub 1 | . . . . . . . . . . . . . 1 . Energy Cycler 1 | . . . . . . . . . . 1 . . . . Machines Repaired . | . . . . . . . . . . . . . . . Machines Dismantled . | . . . . . . . . . . . . . . . Machines Sabotaged . | . . . . . . . . . . . . . . . Overloaded Fab Kills . | . . . . . . . . . . . . . . . Hacking | -11 -10 -10 -10 -9 -8 -8 -7 -6 -6 -6 -6 -6 -6 -5 --------- Run | Yrd Mat Min Exi Min Mat Sto Fac Fac Gar Ext Cet Arc Hub Fac Machines Accessed 54 | . 6 . 1 . 7 11 5 3 3 7 3 . 3 5 Terminals 38 | . 6 . . . 4 8 2 1 3 5 3 . 3 3 Fabricators 2 | . . . . . . . 2 . . . . . . . Repair Stations 3 | . . . . . 1 1 . . . . . . . 1 Recycling Units 5 | . . . . . 1 1 . . . 2 . . . 1 Scanalyzers 2 | . . . . . 1 . . 1 . . . . . . Garrison Access 3 | . . . . . . 1 1 1 . . . . . . Total Hacks 145 | . 13 . 23 . 15 27 10 5 7 20 10 . 4 11 Successful 74 | . 6 . 23 . 7 14 5 1 1 9 4 . . 4 Failed 71 | . 7 . . . 8 13 5 4 6 11 6 . 4 7 Catastrophic 18 | . 4 . . . . 2 2 . 2 3 2 . 2 1 Database Lockouts . | . . . . . . . . . . . . . . . Manual 62 | . 10 . . . 8 13 4 2 4 10 . . 2 9 Terminals 91 | . 13 . . . 7 21 4 2 7 15 10 . 4 8 Fabricators 5 | . . . . . . . 5 . . . . . . . Repair Stations 6 | . . . . . 2 2 . . . . . . . 2 Recycling Units 11 | . . . . . 3 2 . . . 5 . . . 1 Scanalyzers 5 | . . . . . 3 . . 2 . . . . . . Garrison Access 4 | . . . . . . 2 1 1 . . . . . . Terminal Hacks 52 | . 6 . 23 . 3 9 1 . 1 4 4 . . 1 Record 27 | . . . 23 . . . . . . . 4 . . . Part Schematic 4 | . 2 . . . . 1 1 . . . . . . . Robot Analysis 2 | . . . . . . 2 . . . . . . . . Prototype ID Bank 3 | . 1 . . . . 1 . . . 1 . . . . Open Door 2 | . . . . . . 1 . . . 1 . . . . Level Access Points 1 | . . . . . . 1 . . . . . . . . Branch Access Points 3 | . 1 . . . 1 1 . . . . . . . . Terminal Index 2 | . 1 . . . . . . . . . . . . 1 Fabricator Index 1 | . . . . . . 1 . . . . . . . . Unreport Threat 3 | . . . . . 2 . . . . 1 . . . . Locate Traps 2 | . 1 . . . . 1 . . . . . . . . Registered Components 1 | . . . . . . . . . . 1 . . . . Security Stations 1 | . . . . . . . . . 1 . . . . . Fabricator Hacks 3 | . . . . . . . 3 . . . . . . . Network Status 1 | . . . . . . . 1 . . . . . . . Load Schematic 1 | . . . . . . . 1 . . . . . . . Build 1 | . . . . . . . 1 . . . . . . . Repair Station Hacks 4 | . . . . . . 2 . . . . . . . 2 Scan Component 2 | . . . . . . 1 . . . . . . . 1 Repair 2 | . . . . . . 1 . . . . . . . 1 Recycling Unit Hacks 4 | . . . . . 1 1 . . . 2 . . . . Retrieve Components 4 | . . . . . 1 1 . . . 2 . . . . Scanalyzer 2 | . . . . . 2 . . . . . . . . . Insert Component 1 | . . . . . 1 . . . . . . . . . Analyze 1 | . . . . . 1 . . . . . . . . . Garrison Access Hacks 2 | . . . . . . . 1 1 . . . . . . Unlock Access 1 | . . . . . . . . 1 . . . . . . Seal Access 1 | . . . . . . . 1 . . . . . . . Unauthorized Hacks 7 | . . . . . 1 2 . . . 3 . . . 1 Terminals 1 | . . . . . . . . . . 1 . . . . Botnet 1 | . . . . . . . . . . 1 . . . . Fabricators . | . . . . . . . . . . . . . . . Repair Stations . | . . . . . . . . . . . . . . . Recycling Units 5 | . . . . . 1 1 . . . 2 . . . 1 Reject 5 | . . . . . 1 1 . . . 2 . . . 1 Scanalyzers . | . . . . . . . . . . . . . . . Garrison Access 1 | . . . . . . 1 . . . . . . . . Jam 1 | . . . . . . 1 . . . . . . . . Data Cores Recovered 2 | . . . . . 1 . . . . 1 . . . . Used . | . . . . . . . . . . . . . . . Hacking Detections 43 | . 5 . . . 7 8 4 2 3 4 2 . 3 5 Full Trace Events 9 | . 1 . . . 1 3 1 . . 1 2 . . . Feedback Events . | . . . . . . . . . . . . . . . Feedback Blocked . | . . . . . . . . . . . . . . . Robot Schematics Acquired . | . . . . . . . . . . . . . . . Robots Built . | . . . . . . . . . . . . . . . Authchips . | . . . . . . . . . . . . . . . Time . | . . . . . . . . . . . . . . . Total Robot Build Rating . | . . . . . . . . . . . . . . . Part Schematics Acquired 5 | . 2 . . . 1 1 1 . . . . . . . Parts Built 1 | . . . . . . . 1 . . . . . . . Authchips . | . . . . . . . . . . . . . . . Time 25 | . . . . . . . 25 . . . . . . . Total Part Build Rating 1 | . . . . . . . 1 . . . . . . . Parts Repaired 2 | . . . . . . 1 . . . . . . . 1 Time 57 | . . . . . . 38 . . . . . . . 19 Parts Recycled . | . . . . . . . . . . . . . . . Recycled Matter . | . . . . . . . . . . . . . . . Retrieved Matter . | . . . . . . . . . . . . . . . Retrieved Components 13 | . . . . . . 3 . . . 10 . . . . Parts Scanalyzed 1 | . . . . . 1 . . . . . . . . . Part Schematics Acquired 1 | . . . . . 1 . . . . . . . . . Parts Damaged . | . . . . . . . . . . . . . . . Bothacking | -11 -10 -10 -10 -9 -8 -8 -7 -6 -6 -6 -6 -6 -6 -5 ------------ Run | Yrd Mat Min Exi Min Mat Sto Fac Fac Gar Ext Cet Arc Hub Fac Used RIF Installer 1 | . . . . . . . . . 1 . . . . . Robots Hacked 4 | . . . . . . . 1 1 2 . . . . . Non-combat 2 | . . . . . . . 1 1 . . . . . . Combat 2 | . . . . . . . . . 2 . . . . . Robot Hacks Applied 9 | . . . . . . . 4 3 2 . . . . . parse_system 4 | . . . . . . . 1 1 2 . . . . . no_distress 2 | . . . . . . . 1 1 . . . . . . find_fabricator 2 | . . . . . . . 1 1 . . . . . . find_dsf 1 | . . . . . . . 1 . . . . . . . Relay Couplers Released . | . . . . . . . . . . . . . . . Fabnet Peak Effective % . | . . . . . . . . . . . . . . . Robots Rewired 17 | . . . . . . . . . 1 16 . . . . Allies Hacked 1 | . . . . . . . . . . 1 . . . . Hacks Repelled . | . . . . . . . . . . . . . . . Allies | -11 -10 -10 -10 -9 -8 -8 -7 -6 -6 -6 -6 -6 -6 -5 -------- Run | Yrd Mat Min Exi Min Mat Sto Fac Fac Gar Ext Cet Arc Hub Fac Total Allies 20 | . . . . 1 . . . . 1 18 . . . . Largest Group 9 | . . . . 1 1 . . . 1 9 6 . . . Highest-Rated Group 264 | . . . . 31 31 . . . 116 264 174 . . . Highest-Rated Ally 116 | . . . . 31 31 . . . 116 39 39 . . . Total Orders 4 | . . . . . . . . . 2 2 . . . . STAY 1 | . . . . . . . . . . 1 . . . . FOLLOW 3 | . . . . . . . . . 2 1 . . . . Ally Attacks 187 | . . . . 17 2 . . . 27 91 50 . . . Total Damage 4372 | . . . . 252 22 . . . 1716 1648 734 . . . Kills 30 | . . . . 4 . . . . 10 13 3 . . . Allies Corrupted . | . . . . . . . . . . . . . . . Allies Melted 1 | . . . . . . . . . . 1 . . . . Intel | -11 -10 -10 -10 -9 -8 -8 -7 -6 -6 -6 -6 -6 -6 -5 ------- Run | Yrd Mat Min Exi Min Mat Sto Fac Fac Gar Ext Cet Arc Hub Fac Robot Analysis Total 2 | . . . . . . 2 . . . . . . . . Derelict Logs Recovered 1 | . . . . 1 . . . . . . . . . . Drone Launches . | . . . . . . . . . . . . . . . Drone Recoveries . | . . . . . . . . . . . . . . . Exploration | -11 -10 -10 -10 -9 -8 -8 -7 -6 -6 -6 -6 -6 -6 -5 ------------- Run | Yrd Mat Min Exi Min Mat Sto Fac Fac Gar Ext Cet Arc Hub Fac Turns Passed 15017 | 47 292 278 258 485 773 1921 1373 391 2184 3566 889 418 1093 1049 Spaces Moved 8137 | 38 178 187 214 257 435 946 719 716 1408 1560 473 202 489 315 Core 87 | 13 . . . . 4 . . . . 69 . . . 1 Treads 5239 | . . . . . . 853 719 6 852 1335 472 200 489 313 Legs 1388 | 25 178 187 214 257 431 93 . . . . 1 2 . . Wheels . | . . . . . . . . . . . . . . . Hover . | . . . . . . . . . . . . . . . Flight 1423 | . . . . . . . . 710 556 156 . . . 1 Fastest Speed 21 | 50 120 120 120 120 120 120 145 24 25 21 160 160 160 50 Average Speed 143 | 96 120 120 120 165 128 149 149 25 108 200 160 160 166 237 Slowest Speed 450 | 120 120 120 120 190 450 225 156 156 240 450 190 190 245 395 Overloaded Moves . | . . . . . . . . . . . . . . . Propulsion Burnouts . | . . . . . . . . . . . . . . . Robots Hopped 20 | . . . . . . . . 10 6 4 . . . . Cave-ins Triggered . | . . . . . . . . . . . . . . . Exploration Rate (%) 51 | 4 35 33 60 71 34 92 21 24 72 97 78 91 46 10 Regions Visited 14 Branch Regions 8 Pre-discovered Areas 1 | . . . 1 . . . . . . . . . . . Known Exits Taken 8 | . 1 . . . 1 1 . 1 . 1 1 1 1 . Unknown Exits Taken 5 | 1 . 1 1 1 . . 1 . . . . . . . Scrap Searched 2 | . . . . 2 . . . . . . . . . . Spaces Dug 5 | . . . . . . . 1 2 . . . . 2 . Terrain Destroyed 776 | . . . . 5 190 22 74 2 37 2 130 5 178 131 Melee 3 | . . . . . . . 1 2 . . . . . . Projectile 41 | . . . . . . . . . 1 2 5 5 19 9 AOE 732 | . . . . 5 190 22 73 . 36 . 125 . 159 122 Terrain Rammed . | . . . . . . . . . . . . . . . Walls Destroyed . | . . . . . . . . . . . . . . . Machines Disabled . | . . . . . . . . . . . . . . . Actions | -11 -10 -10 -10 -9 -8 -8 -7 -6 -6 -6 -6 -6 -6 -5 --------- Run | Yrd Mat Min Exi Min Mat Sto Fac Fac Gar Ext Cet Arc Hub Fac Total 10253 | 45 219 228 215 301 554 1273 898 868 1858 1871 540 259 647 477 Wait 582 | . 11 26 . 13 . 75 55 81 218 37 4 14 27 21 Move 8092 | 37 177 186 213 256 434 945 718 700 1398 1551 472 201 489 315 Hop 13 | . . . . . . . . 6 3 4 . . . . Pick Up 106 | 2 6 1 . 7 8 18 6 4 13 9 4 4 15 9 Fast Attach 143 | 6 2 2 . . 19 26 8 5 16 21 6 5 16 11 Attach 82 | . . . . . 9 5 7 11 7 13 5 5 6 14 Detach 84 | . 1 . . . 5 13 6 9 16 14 1 3 8 8 Swap 114 | . 1 1 1 7 8 21 21 6 12 14 6 6 4 6 Drop 170 | . 1 4 1 7 8 37 9 13 24 32 3 2 13 16 Fire 612 | . 18 7 . 10 61 124 62 4 82 67 39 18 49 71 Melee 104 | . . . . . 2 5 1 29 49 . . 1 15 2 Ram 1 | . . . . . . . . . . 1 . . . . Kick 4 | . 2 1 . 1 . . . . . . . . . . Crush 28 | . . . . . . 4 5 . 2 8 . . 5 4 Escape Stasis 38 | . . . . . . . . . 18 20 . . . . Rewire 80 | . . . . . . . . . . 80 . . . . Trap . | . . . . . . . . . . . . . . . Miscellaneous . | . . . . . . . . . . . . . . . Route ------- -11/Scrapyard -10/Materials (discovered 3 exits: [*Mat x2] / *Min) -10/Mines (discovered 2 exits: [*Mat] / *Exi) -10/Exiles -9/Mines -8/Materials (discovered 2 exits: *Sto x2) -8/Storage (discovered 2 exits: *Fac / Rec) -7/Factory (discovered 2 exits: *Fac / [*Low]) -6/Factory (discovered 5 exits: *Fac x2 / [*Low x2] / Gar) -6/Garrison (discovered 3 exits: *Ext x3) -6/Extension (discovered 3 exits: *Fac x2 / *Cet) -6/Cetus (discovered 3 exits: *Fac x2 / *Arc) -6/Archives (discovered 3 exits: *Fac / *Hub x2) -6/Hub_04(d) (discovered 2 exits: *Fac x2) -5/Factory History --------- Turn | Location | Event 16 | -11/Scrapyard | Discovered new exit (range 15) 48 | -11/Scrapyard | Entered Materials 60 | -10/Materials | Identified exit to Mines 231 | -10/Materials | Discovered new exit (range 16) 303 | -10/Materials | Discovered new exit (range 14) 311 | -10/Materials | Build established: Mutant 340 | -10/Materials | Entered Mines 381 | -10/Mines | Discovered new exit (range 14) 406 | -10/Mines | Joined a pair of Derelicts in attacking an 0b10 outpost 445 | -10/Mines | Deemed a non-threat by the Exiles lab entrance 445 | -10/Mines | Discovered new exit (range 5) 548 | -10/Mines | Assembled infested the area 553 | -10/Mines | Assisted by a Guerilla fighting off Assembled 618 | -10/Mines | Entered Exiles 646 | -10/Exiles | Met 8R-AWN 668 | -10/Exiles | Met EX-HEX 733 | -10/Exiles | Met EX-DEC 759 | -10/Exiles | Visited The Gauntlet 817 | -10/Exiles | Learned location of Zion (-6) 860 | -10/Exiles | Discovered new exit (range 14) 876 | -10/Exiles | Entered Mines 879 | -9/Mines | Met a Derelict testing a Signal Generator 904 | -9/Mines | Found Signal Generator 1191 | -9/Mines | Received a Rocket Launcher from a helpful Derelict 1295 | -9/Mines | Build established: Scavenger-Mutant 1314 | -9/Mines | Discovered new exit (range 7) 1315 | -9/Mines | Learned Materials garrison access intel 1361 | -9/Mines | Entered Materials 1361 | -8/Materials | Accompanied by 1 ally 1361 | -8/Materials | Evolved 4 slots: Propulsion x3, Utility x1 1362 | -8/Materials | Loaded intel: 1 garrison access location 1736 | -8/Materials | Identified exit to Storage 1822 | -8/Materials | Lost 11 parts (2p5n1u3w) 1882 | -8/Materials | Core integrity fell below 50% 2134 | -8/Materials | Entered Storage 2144 | -8/Storage | Lost 3 parts (1p1n1w) 2271 | -8/Storage | Identified exit to Recycling 2954 | -8/Storage | Repaired Adv. Treads 3452 | -8/Storage | Core integrity fell below 20% 3476 | -8/Storage | Identified exit to Factory 3922 | -8/Storage | Garrison activated, responded to threat 4055 | -8/Storage | Entered Factory 4055 | -7/Factory | Evolved 2 slots: Utility x2 4191 | -7/Factory | Discovered new exit (range 10) 4860 | -7/Factory | Fabricated Med. Storage Unit (x1) 4934 | -7/Factory | Destroyed 7 combat bots 5242 | -7/Factory | Lost 3 parts (1n1u1w) 5381 | -7/Factory | Discovered new exit (range 15) 5427 | -7/Factory | System corruption reached 10% 5428 | -7/Factory | Entered another Factory area 5428 | -6/Factory | Evolved 2 slots: Utility x2 5543 | -6/Factory | Discovered new exit (range 12) 5646 | -6/Factory | Spotted B-75 Beast 5705 | -6/Factory | Discovered new exit (range 9) 5706 | -6/Factory | Identified exit to Factory 5711 | -6/Factory | Discovered new exit (range 14) 5762 | -6/Factory | Discovered exit to Factory (range 16) 5819 | -6/Factory | Identified exit to Garrison 5819 | -6/Factory | Entered Garrison 5826 | -6/Garrison | Triggered checkpoint 5851 | -6/Garrison | Rewired B-86 Titan 5855 | -6/Garrison | Spotted B-86 Titan 5869 | -6/Garrison | Allies destroyed B-86 Titan 6079 | -6/Garrison | Triggered checkpoint 6119 | -6/Garrison | Triggered checkpoint 6137 | -6/Garrison | Triggered checkpoint 6165 | -6/Garrison | Build established: Hacker-Sprinter 6216 | -6/Garrison | Discovered new exit (range 11) 6530 | -6/Garrison | Build established: Scavenger-Mutant 6649 | -6/Garrison | Triggered checkpoint 6715 | -6/Garrison | Triggered checkpoint 7357 | -6/Garrison | Triggered checkpoint 7473 | -6/Garrison | Triggered checkpoint 7553 | -6/Garrison | Triggered checkpoint 7621 | -6/Garrison | Learned Extension security intel 7628 | -6/Garrison | Discovered new exit (range 12) 7644 | -6/Garrison | Identified exit to Extension 7757 | -6/Garrison | Discovered exit to Extension (range 11) 7791 | -6/Garrison | Triggered checkpoint 7900 | -6/Garrison | Installed Relay Interface Framework 8003 | -6/Garrison | Entered Extension 8008 | -6/Extension | Disrupted transfer network 8353 | -6/Extension | First assault squad dispatched 8494 | -6/Extension | Energy Cycler disabled 8495 | -6/Extension | Rescued a captive Derelict 8503 | -6/Extension | Rescued a captive Derelict 8510 | -6/Extension | Rescued a captive Derelict 8529 | -6/Extension | Rescued a captive Derelict 8634 | -6/Extension | Spotted B-75 Beast 8700 | -6/Extension | Lost 6 allies 8785 | -6/Extension | Destroyed B-75 Beast 8933 | -6/Extension | Spotted B-75 Beast 9124 | -6/Extension | Destroyed B-75 Beast 9150 | -6/Extension | Lost 3 parts (2n1u) 9793 | -6/Extension | Discovered exit to Factory (range 16) 10272 | -6/Extension | Discovered exit to Factory (range 11) 10274 | -6/Extension | Extracted ID and sensor layout for unrecognized location from A7's data core 10274 | -6/Extension | Discovered new exit (range 7) 10432 | -6/Extension | Build established: Commander-Mutant 11379 | -6/Extension | Lost 3 allies 11552 | -6/Extension | Identified exit to Cetus 11569 | -6/Extension | Entered Cetus 11569 | -6/Cetus | Accompanied by 6 allies 11591 | -6/Cetus | Spotted Cetus Guard 11591 | -6/Cetus | Spotted Cetus Guard 11593 | -6/Cetus | Spotted Cetus Guard 11594 | -6/Cetus | Spotted Cetus Guard 11610 | -6/Cetus | Destroyed Cetus Guard 11618 | -6/Cetus | Destroyed Cetus Guard 11618 | -6/Cetus | Destroyed Cetus Guard 11622 | -6/Cetus | Allies destroyed Cetus Guard 11643 | -6/Cetus | Lost 4 allies 11649 | -6/Cetus | Lost 3 parts (1n1u1w) 11654 | -6/Cetus | Build established: Scavenger-Mutant 11813 | -6/Cetus | Discovered new exit (range 16) 11835 | -6/Cetus | Identified exit to Archives 11872 | -6/Cetus | Spotted Cetus Guard 11872 | -6/Cetus | Spotted Cetus Guard 11880 | -6/Cetus | Destroyed Cetus Guard 11880 | -6/Cetus | Spotted Cetus Guard 11881 | -6/Cetus | Spotted Cetus Guard 11888 | -6/Cetus | Allies destroyed Cetus Guard 11890 | -6/Cetus | Destroyed Cetus Guard 11898 | -6/Cetus | Destroyed Cetus Guard 11906 | -6/Cetus | Discovered exit to Factory (range 15) 11916 | -6/Cetus | Met Revision 17 12070 | -6/Cetus | Cetus Manufacturing Module disabled 12183 | -6/Cetus | Discovered exit to Factory (range 15) 12319 | -6/Cetus | Security sweep announced 12424 | -6/Cetus | Lost 3 parts (2u1w) 12458 | -6/Cetus | Entered Archives 12539 | -6/Archives | Discovered exit to Factory (range 14) 12610 | -6/Archives | Lost 7 parts (1p1n2u3w) 12619 | -6/Archives | Discovered new exit (range 13) 12678 | -6/Archives | Unable to access archive contents 12699 | -6/Archives | Unable to access archive contents 12732 | -6/Archives | Unable to access archive contents 12790 | -6/Archives | Discovered new exit (range 15) 12812 | -6/Archives | Identified exit to Hub_04(d) 12876 | -6/Archives | Entered Hub_04(d) 13268 | -6/Hub_04(d) | Core integrity fell below 50% 13609 | -6/Hub_04(d) | Discovered exit to Factory (range 9) 13862 | -6/Hub_04(d) | Discovered exit to Factory (range 4) 13953 | -6/Hub_04(d) | Network Hub disabled 13956 | -6/Hub_04(d) | Spotted Lightning 13958 | -6/Hub_04(d) | Spotted Lightning 13958 | -6/Hub_04(d) | Spotted Lightning 13958 | -6/Hub_04(d) | Spotted Lightning 13963 | -6/Hub_04(d) | Spotted Lightning 13965 | -6/Hub_04(d) | System corruption reached 10% 13969 | -6/Hub_04(d) | Entered Factory 13969 | -5/Factory | Evolved 2 slots: Power x1, Utility x1 13996 | -5/Factory | Lost 3 parts (1n2u) 14323 | -5/Factory | Lost 3 parts (1p1n1w) 14569 | -5/Factory | First assault squad dispatched 14613 | -5/Factory | Lost 3 parts (1p1u1w) 14675 | -5/Factory | Repaired Arm. Treads 15018 | -5/Factory | Self-destructed Last Messages --------------- 15007_ K-01 Serf collects debris. 15007_ M-28 Smith repairs Tesla Rifle. 15007_ K-01 Serf destroyed. 15007_ Chain reaction triggered in Lgt. Ion Engine. 15007_ K-01 Serf destroyed. 15008_ P-70 Sage resets L-41 Fighter, system corruption cleaned. 15008_ Acquired VTOL Module. 15008_ K-01 Serf collects debris. 15009_ Dropped Hrd. Light Armor Plating. 15011_ K-01 Serf collects debris. 15014_ Acquired VTOL Module. 15015_ K-01 Serf collects debris. 15015_ Dropped Lgt. Antimatter Reactor. 15016_ Dropped Wave Gun. 15016_ Imp. Cooling System destroyed. 15016_ VTOL Module destroyed. 15017_ Imp. Treads destroyed. 15017_ K-01 Serf collects debris. Map ----- +----------------------------------------------------+ | ?????????????????????????????????????????????????? | | ?????????????????????????????????????????????????? | | ?????????????????????????????????????????????????? | | ?????????????????????????????????????????????????? | | ?????????????????????????????????????????????????? | | ?????????????????????????????????????????????????? | | ????????????????????????""?? #???????????????????? | | ???????????????????? ??? ?? #?? ???????????????? | | ???????????????????? ?? ?? #? ?????????????? | | ????????????????????? ###"##"## #????????????? | | ????????????????????? % #????????????? | | ?????????????????????? #????????????? | | ?????????????????????? #????????????? | | ??????????????????????? s #????????????? | | ??????????????????????? ##???????????? | | ???????????????????????# s ##???????????? | | ??????????????????????## #####????????? | | ??????????????????????#==* ????????? | | ??????????????????????#Tst!!* ???????? | | ??????????????????######!!p=! % ???????? | | ??????????????????# #!!!!!!g " ???????? | | ??????????????????# #=!m*[ "%" ???????? | | ??????????????????# #%!!!g##########??????????? | | ??????????????????# *#lbp ##############??????? | | ??????????????????# *[+%* # #??????? | | ??????????????????# *;%@ # #??????? | | ??????????????????# # k # #??????? | | ??????????????????# # % # """ """ #??????? | | ??????????????????# =[# # """ """ #??????? | | ????????#############"## wk# """ """ #??????? | | ????????# % # # #??????? | | ????????# """"""""" # %# """ "" #??????? | | ????????# + +"""" [ """ #??????? | | ????????# """"""""" # #%""" ! = R" #??????? | | ????????# # #" """ #??????? | | ????????# ! # + ! #??????? | | ????????################+#+########+#######??????? | | ???????????????????# ## #????????????? | | ???????????????????# ##!#????????????? | | ???????????????????# ##!#????????????? | | ???????????????????# +=%#????????????? | | ???????????????????# ## #????????????? | | ???????????????????#* ] "" ## #????????????? | | ???????????????????# "" ## #????????????? | | ???????????????????# T" ## #????????????? | | ???????????????????# "" ## ##???????????? | | ???????????????????#[ * "" # #???????????? | | ??????????????????## # +???????????? | | ################################## #???????????? | | # """""" """ ## ## #???????????? | +----------------------------------------------------+ Best States ------------- Heat Dissipation 102 Energy Generation 21 Energy Capacity 675 Matter Stores 300 Matter Capacity 300 Sight Range 16 Robot Scan Range 16 Terrain Scan Density 10 Additional Mass Support 12 Armor Coverage 1050 Resistance: KI 20 Resistance: TH 35 Resistance: EX 20 Resistance: EM 35 Resistance: I 20 Resistance: S 20 Resistance: P 20 Phase Shifting 5 Evasion (%) 65 Targeting Accuracy 6 Target Analysis 5 Recoil Reduction 5 Offensive Hacking 30 Item Schematics ----------------- Structural Scanner | -10/Materials | Hacked Med. Storage Unit | -10/Materials | Hacked Carbon-fiber Leg | -8/Materials | Scanalyzed Plasma Cutter | -8/Storage | Hacked Hacking Suite | -7/Factory | Hacked Robot Schematics ------------------ None Fabricated ------------ Med. Storage Unit | x1 | -7/Factory Alien Tech Used ----------------- None Achievements -------------- Brute Force Revising The Future Challenges ------------ None Game ------ Seed ActiveUltimateCharger Manual? 0 Play Time 02:55:35 Cumulative 73.4 hours Start 2024.10.11 @ 21:41:05 End 2024.10.12 @ 14:58:12 Sessions 10 Manual Loads 0 Difficulty Adventurer Special Mode None Game No. 39 Rogue 0 Adventurer 39 Explorer 0 Win Type - Total 3 Types 3/0/0/0/0/0/0/0/0 Lore% 40 Gallery% 49 Achievement% 41 Wizard Run 0 Options --------- Layout 1 ASCII 0 Keyboard 1 Movement Numpad Keybinds 0 Fullscreen 1 Font 24/Tamsyn Map View 50x35 Zoom Use 0% Tactical HUD 1 Map Filters NONE Filters NONE Steam 1 RUN: c79da53a-441a-44e2-870a-dd1ab5d135c8